[Event "Titled Tuesday Blitz February 01 A 2022"]
[White "Kislinsky, Alexey"]
[Black "Hayrapetyan, Hovik"]
[WhiteFideId "14108801"]
[BlackFideId "13302639"]
[WhiteElo "2335"]
[BlackElo "2352"]
[Result "0-1"]
[Round "09"]
[TimeControl "180+1"]
[Date "2022.02.01"]
[WhiteClock "0:00:50"]
[BlackClock "0:01:15"]

1. e4 {[%clk 0:03:00]}  g6 {[%clk 0:03:00]} 2. Nc3 {[%clk 0:02:58]}  Bg7 {[%clk 0:03:00]} 3. h4 {[%clk 0:02:58]}  c6 {[%clk 0:02:55]} 4. h5 {[%clk 0:02:58]}  d5 {[%clk 0:02:55]} 5. exd5 {[%clk 0:02:52]}  cxd5 {[%clk 0:02:56]} 6. d4 {[%clk 0:02:52]}  Nc6 {[%clk 0:02:56]} 7. Bb5 {[%clk 0:02:46]}  Bd7 {[%clk 0:02:42]} 8. Nf3 {[%clk 0:02:36]}  Bg4 {[%clk 0:02:35]} 9. h6 {[%clk 0:02:34]}  Bf6 {[%clk 0:02:33]} 10. Be3 {[%clk 0:02:28]}  e6 {[%clk 0:02:31]} 11. Be2 {[%clk 0:02:21]}  Qb6 {[%clk 0:02:27]} 12. a3 {[%clk 0:02:08]}  Bxf3 {[%clk 0:02:24]} 13. Bxf3 {[%clk 0:02:03]}  Bxd4 {[%clk 0:02:24]} 14. Bxd4 {[%clk 0:02:00]}  Qxd4 {[%clk 0:02:24]} 15. Qe2 {[%clk 0:01:57]}  Nf6 {[%clk 0:02:21]} 16. O-O {[%clk 0:01:52]}  O-O {[%clk 0:02:19]} 17. g3 {[%clk 0:01:45]}  Qe5 {[%clk 0:02:09]} 18. Qd3 {[%clk 0:01:41]}  Qg5 {[%clk 0:02:07]} 19. Kg2 {[%clk 0:01:38]}  Qxh6 {[%clk 0:02:04]} 20. Rae1 {[%clk 0:01:35]}  Qg5 {[%clk 0:02:03]} 21. Ne2 {[%clk 0:01:15]}  Ne5 {[%clk 0:02:00]} 22. Qb3 {[%clk 0:01:14]}  Nxf3 {[%clk 0:01:52]} 23. Qxf3 {[%clk 0:01:13]}  Qf5 {[%clk 0:01:50]} 24. Qb3 {[%clk 0:01:12]}  Qe4+ {[%clk 0:01:45]} 25. Kg1 {[%clk 0:01:09]}  Qc4 {[%clk 0:01:43]} 26. Qe3 {[%clk 0:01:04]}  Qxc2 {[%clk 0:01:36]} 27. Qh6 {[%clk 0:00:57]}  Ng4 {[%clk 0:01:33]} 28. Qh4 {[%clk 0:00:54]}  Qf5 {[%clk 0:01:33]} 29. Nd4 {[%clk 0:00:54]}  Qh5 {[%clk 0:01:33]} 30. Qxh5 {[%clk 0:00:53]}  gxh5 {[%clk 0:01:33]} 31. Kg2 {[%clk 0:00:53]}  Rac8 {[%clk 0:01:30]} 32. Rh1 {[%clk 0:00:53]}  Nf6 {[%clk 0:01:30]} 33. Re5 {[%clk 0:00:52]}  h6 {[%clk 0:01:29]} 34. Ne2 {[%clk 0:00:50]}  Rc2 {[%clk 0:01:27]} 35. Nf4 {[%clk 0:00:51]}  Rxf2+ {[%clk 0:01:25]} 36. Kxf2 {[%clk 0:00:51]}  Ng4+ {[%clk 0:01:25]} 37. Ke2 {[%clk 0:00:52]}  Nxe5 {[%clk 0:01:25]} 38. Nxh5 {[%clk 0:00:53]}  Rc8 {[%clk 0:01:21]} 39. Ke3 {[%clk 0:00:53]}  Ng4+ {[%clk 0:01:18]} 40. Kf3 {[%clk 0:00:51]}  f5 {[%clk 0:01:15]} 41. Re1 {[%clk 0:00:50]}  Rc2 {[%clk 0:01:15]} 0-1


[Site "https://www.chess.com"]

[Event "Titled Tuesday Blitz February 01 A 2022"]
[White "Kobalia, Mikhail"]
[Black "Arabidze, Meri"]
[WhiteFideId "4119150"]
[BlackFideId "13604040"]
[WhiteElo "2667"]
[BlackElo "2329"]
[Result "0-1"]
[Round "09"]
[TimeControl "180+1"]
[Date "2022.02.01"]
[WhiteClock "0:00:01"]
[BlackClock "0:00:08"]

1. e4 {[%clk 0:03:00]}  c5 {[%clk 0:02:59]} 2. Nf3 {[%clk 0:03:00]}  e6 {[%clk 0:02:59]} 3. g3 {[%clk 0:02:57]}  Nc6 {[%clk 0:02:52]} 4. Bg2 {[%clk 0:02:57]}  Nf6 {[%clk 0:02:51]} 5. Qe2 {[%clk 0:02:57]}  d6 {[%clk 0:02:51]} 6. O-O {[%clk 0:02:56]}  Be7 {[%clk 0:02:52]} 7. c3 {[%clk 0:02:55]}  O-O {[%clk 0:02:49]} 8. Rd1 {[%clk 0:02:54]}  Bd7 {[%clk 0:02:48]} 9. d4 {[%clk 0:02:40]}  cxd4 {[%clk 0:02:49]} 10. cxd4 {[%clk 0:02:40]}  d5 {[%clk 0:02:50]} 11. e5 {[%clk 0:02:40]}  Ne4 {[%clk 0:02:50]} 12. Be3 {[%clk 0:02:41]}  Rc8 {[%clk 0:02:47]} 13. Ne1 {[%clk 0:02:40]}  h6 {[%clk 0:02:40]} 14. f3 {[%clk 0:02:39]}  Ng5 {[%clk 0:02:39]} 15. h4 {[%clk 0:02:39]}  Nh7 {[%clk 0:02:39]} 16. Nd3 {[%clk 0:02:34]}  Nb4 {[%clk 0:02:32]} 17. Nc3 {[%clk 0:02:31]}  Nxd3 {[%clk 0:02:26]} 18. Qxd3 {[%clk 0:02:31]}  b5 {[%clk 0:02:17]} 19. Bf1 {[%clk 0:02:07]}  b4 {[%clk 0:02:15]} 20. Ne2 {[%clk 0:02:07]}  Qc7 {[%clk 0:01:53]} 21. Rac1 {[%clk 0:02:04]}  Qa5 {[%clk 0:01:52]} 22. Rxc8 {[%clk 0:01:48]}  Rxc8 {[%clk 0:01:51]} 23. Nc1 {[%clk 0:01:48]}  Nf8 {[%clk 0:01:43]} 24. Qb1 {[%clk 0:01:32]}  Ba4 {[%clk 0:01:39]} 25. Nb3 {[%clk 0:01:28]}  Qb6 {[%clk 0:01:28]} 26. Rc1 {[%clk 0:01:26]}  Rxc1 {[%clk 0:01:20]} 27. Qxc1 {[%clk 0:01:26]}  Qc6 {[%clk 0:01:09]} 28. Qxc6 {[%clk 0:01:00]}  Bxc6 {[%clk 0:01:10]} 29. Na5 {[%clk 0:00:59]}  Ba4 {[%clk 0:01:03]} 30. b3 {[%clk 0:00:56]}  Be8 {[%clk 0:00:59]} 31. Kf2 {[%clk 0:00:52]}  f6 {[%clk 0:00:53]} 32. f4 {[%clk 0:00:47]}  Kf7 {[%clk 0:00:53]} 33. Bd3 {[%clk 0:00:41]}  Bd8 {[%clk 0:00:29]} 34. Nb7 {[%clk 0:00:40]}  Be7 {[%clk 0:00:26]} 35. Bd2 {[%clk 0:00:23]}  Nd7 {[%clk 0:00:22]} 36. Nd6+ {[%clk 0:00:20]}  Bxd6 {[%clk 0:00:22]} 37. exd6 {[%clk 0:00:21]}  a5 {[%clk 0:00:22]} 38. Ba6 {[%clk 0:00:19]}  e5 {[%clk 0:00:20]} 39. dxe5 {[%clk 0:00:18]}  fxe5 {[%clk 0:00:21]} 40. fxe5 {[%clk 0:00:16]}  Nxe5 {[%clk 0:00:20]} 41. Bf4 {[%clk 0:00:16]}  Ke6 {[%clk 0:00:19]} 42. Bc8+ {[%clk 0:00:13]}  Kxd6 {[%clk 0:00:19]} 43. Ke1 {[%clk 0:00:12]}  g5 {[%clk 0:00:19]} 44. hxg5 {[%clk 0:00:10]}  hxg5 {[%clk 0:00:20]} 45. Be3 {[%clk 0:00:07]}  d4 {[%clk 0:00:19]} 46. Bd2 {[%clk 0:00:04]}  Nf3+ {[%clk 0:00:18]} 47. Ke2 {[%clk 0:00:04]}  Nxd2 {[%clk 0:00:19]} 48. Kxd2 {[%clk 0:00:04]}  Ke5 {[%clk 0:00:20]} 49. Bb7 {[%clk 0:00:04]}  Bg6 {[%clk 0:00:20]} 50. Bc6 {[%clk 0:00:03]}  Bb1 {[%clk 0:00:20]} 51. Bb5 {[%clk 0:00:02]}  Be4 {[%clk 0:00:19]} 52. Bc4 {[%clk 0:00:01]}  Bd5 {[%clk 0:00:17]} 53. Bd3 {[%clk 0:00:01]}  Be4 {[%clk 0:00:16]} 54. Bc4 {[%clk 0:00:02]}  Bb1 {[%clk 0:00:16]} 55. Bb5 {[%clk 0:00:01]}  Bf5 {[%clk 0:00:09]} 56. Ba6 {[%clk 0:00:01]}  Be6 {[%clk 0:00:09]} 57. Bd3 {[%clk 0:00:01]}  Bd5 {[%clk 0:00:09]} 58. Bb5 {[%clk 0:00:01]}  g4 {[%clk 0:00:08]} 0-1


[Site "https://www.chess.com"]

[Event "Titled Tuesday Blitz February 01 A 2022"]
[White "Martinez Alcantara, Jose Eduardo"]
[Black "Grandelius, Nils"]
[WhiteFideId "3805662"]
[BlackFideId "1710400"]
[WhiteElo "2690"]
[BlackElo "2617"]
[Result "1-0"]
[Round "09"]
[TimeControl "180+1"]
[Date "2022.02.01"]
[WhiteClock "0:00:34"]
[BlackClock "0:00:28"]

1. e4 {[%clk 0:03:00]}  c6 {[%clk 0:03:00]} 2. d4 {[%clk 0:03:00]}  d5 {[%clk 0:03:00]} 3. e5 {[%clk 0:03:01]}  c5 {[%clk 0:03:01]} 4. Nf3 {[%clk 0:03:00]}  cxd4 {[%clk 0:03:01]} 5. Nxd4 {[%clk 0:03:01]}  Nc6 {[%clk 0:02:57]} 6. Nxc6 {[%clk 0:03:00]}  bxc6 {[%clk 0:02:57]} 7. Bd3 {[%clk 0:03:01]}  Ba6 {[%clk 0:02:46]} 8. Be3 {[%clk 0:03:01]}  e6 {[%clk 0:02:42]} 9. O-O {[%clk 0:02:58]}  Bxd3 {[%clk 0:02:43]} 10. cxd3 {[%clk 0:02:59]}  Ne7 {[%clk 0:02:42]} 11. Qa4 {[%clk 0:02:53]}  Qd7 {[%clk 0:02:42]} 12. Rc1 {[%clk 0:02:43]}  Ng6 {[%clk 0:02:24]} 13. f4 {[%clk 0:02:27]}  c5 {[%clk 0:02:20]} 14. Qxd7+ {[%clk 0:01:57]}  Kxd7 {[%clk 0:02:21]} 15. g3 {[%clk 0:01:58]}  a5 {[%clk 0:01:22]} 16. Nd2 {[%clk 0:01:50]}  a4 {[%clk 0:01:16]} 17. Bxc5 {[%clk 0:01:42]}  Bxc5+ {[%clk 0:01:17]} 18. Rxc5 {[%clk 0:01:42]}  Rhb8 {[%clk 0:01:17]} 19. Rac1 {[%clk 0:01:07]}  Rxb2 {[%clk 0:01:13]} 20. Rc7+ {[%clk 0:01:07]}  Ke8 {[%clk 0:01:12]} 21. Nf3 {[%clk 0:01:07]}  Ne7 {[%clk 0:00:59]} 22. Nd4 {[%clk 0:01:01]}  Rxa2 {[%clk 0:00:55]} 23. Rb7 {[%clk 0:00:58]}  Rc8 {[%clk 0:00:55]} 24. Rxe7+ {[%clk 0:00:58]}  Kxe7 {[%clk 0:00:56]} 25. Rxc8 {[%clk 0:00:58]}  a3 {[%clk 0:00:50]} 26. Rc7+ {[%clk 0:00:54]}  Ke8 {[%clk 0:00:48]} 27. Ra7 {[%clk 0:00:53]}  Ra1+ {[%clk 0:00:45]} 28. Kg2 {[%clk 0:00:53]}  a2 {[%clk 0:00:46]} 29. Nc2 {[%clk 0:00:51]}  Rd1 {[%clk 0:00:44]} 30. Rxa2 {[%clk 0:00:51]}  Rxd3 {[%clk 0:00:43]} 31. Ne1 {[%clk 0:00:49]}  Rb3 {[%clk 0:00:39]} 32. Nf3 {[%clk 0:00:48]}  f6 {[%clk 0:00:39]} 33. Ra8+ {[%clk 0:00:47]}  Kf7 {[%clk 0:00:39]} 34. Ra7+ {[%clk 0:00:47]}  Kg6 {[%clk 0:00:40]} 35. Nd4 {[%clk 0:00:45]}  Rb2+ {[%clk 0:00:33]} 36. Kf3 {[%clk 0:00:37]}  Rxh2 {[%clk 0:00:30]} 37. exf6 {[%clk 0:00:33]}  Kxf6 {[%clk 0:00:28]} 38. Ra6 {[%clk 0:00:34]} 1-0


[Site "https://www.chess.com"]

[Event "Titled Tuesday Blitz February 01 A 2022"]
[White "Neiksans, Arturs"]
[Black "Jobava, Baadur"]
[WhiteFideId "11601388"]
[BlackFideId "13601520"]
[WhiteElo "2447"]
[BlackElo "2617"]
[Result "0-1"]
[Round "09"]
[TimeControl "180+1"]
[Date "2022.02.01"]
[WhiteClock "0:00:20"]
[BlackClock "0:01:10"]

1. e4 {[%clk 0:03:00]}  e6 {[%clk 0:02:45]} 2. d4 {[%clk 0:02:54]}  d5 {[%clk 0:02:37]} 3. c4 {[%clk 0:02:54]}  dxe4 {[%clk 0:02:32]} 4. Nc3 {[%clk 0:02:53]}  Nf6 {[%clk 0:02:29]} 5. f3 {[%clk 0:02:50]}  Nc6 {[%clk 0:02:25]} 6. d5 {[%clk 0:02:46]}  exd5 {[%clk 0:02:24]} 7. cxd5 {[%clk 0:02:39]}  Ne5 {[%clk 0:02:23]} 8. fxe4 {[%clk 0:02:26]}  Bc5 {[%clk 0:02:19]} 9. Bf4 {[%clk 0:02:18]}  Neg4 {[%clk 0:02:12]} 10. Bb5+ {[%clk 0:02:11]}  Bd7 {[%clk 0:02:02]} 11. Bxd7+ {[%clk 0:02:07]}  Qxd7 {[%clk 0:02:01]} 12. Nh3 {[%clk 0:01:55]}  O-O {[%clk 0:02:00]} 13. Qd3 {[%clk 0:01:46]}  Rfe8 {[%clk 0:01:45]} 14. O-O-O {[%clk 0:01:45]}  Bd6 {[%clk 0:01:39]} 15. Qf3 {[%clk 0:01:26]}  b5 {[%clk 0:01:30]} 16. Nf2 {[%clk 0:01:00]}  Nxf2 {[%clk 0:01:24]} 17. Qxf2 {[%clk 0:00:59]}  b4 {[%clk 0:01:23]} 18. Bxd6 {[%clk 0:00:56]}  cxd6 {[%clk 0:01:21]} 19. Ne2 {[%clk 0:00:55]}  Nxe4 {[%clk 0:01:20]} 20. Qd4 {[%clk 0:00:54]}  b3 {[%clk 0:01:16]} 21. a3 {[%clk 0:00:47]}  Qf5 {[%clk 0:01:10]} 22. Rhf1 {[%clk 0:00:22]}  Rac8+ {[%clk 0:01:09]} 23. Nc3 {[%clk 0:00:22]}  Nxc3 {[%clk 0:01:09]} 24. Rxf5 {[%clk 0:00:20]}  Ne2+ {[%clk 0:01:09]} 25. Kb1 {[%clk 0:00:20]}  Nxd4 {[%clk 0:01:10]} 0-1


[Site "https://www.chess.com"]

[Event "Titled Tuesday Blitz February 01 A 2022"]
[White "Orozbaev, Eldiar"]
[Black "Svane, Frederik"]
[WhiteFideId "13802240"]
[BlackFideId "12923044"]
[WhiteElo "2050"]
[BlackElo "2459"]
[Result "0-1"]
[Round "09"]
[TimeControl "180+1"]
[Date "2022.02.01"]
[WhiteClock "0:00:59"]
[BlackClock "0:00:48"]

1. e4 {[%clk 0:02:58]}  c5 {[%clk 0:03:00]} 2. c3 {[%clk 0:02:58]}  d5 {[%clk 0:03:00]} 3. exd5 {[%clk 0:02:55]}  Qxd5 {[%clk 0:03:01]} 4. Nf3 {[%clk 0:02:56]}  g6 {[%clk 0:03:01]} 5. d4 {[%clk 0:02:56]}  Bg7 {[%clk 0:03:01]} 6. Be2 {[%clk 0:02:56]}  Nf6 {[%clk 0:02:57]} 7. O-O {[%clk 0:02:56]}  O-O {[%clk 0:02:55]} 8. Be3 {[%clk 0:02:54]}  cxd4 {[%clk 0:02:54]} 9. Nxd4 {[%clk 0:02:51]}  Qd7 {[%clk 0:02:46]} 10. Na3 {[%clk 0:02:46]}  b6 {[%clk 0:02:45]} 11. Bf3 {[%clk 0:02:44]}  Bb7 {[%clk 0:02:45]} 12. Qe2 {[%clk 0:02:35]}  e5 {[%clk 0:02:32]} 13. Bxb7 {[%clk 0:02:34]}  Qxb7 {[%clk 0:02:32]} 14. Nb3 {[%clk 0:02:33]}  Nd5 {[%clk 0:02:08]} 15. Rad1 {[%clk 0:02:30]}  Nxe3 {[%clk 0:02:07]} 16. Qxe3 {[%clk 0:02:30]}  Nd7 {[%clk 0:02:07]} 17. Rd6 {[%clk 0:02:29]}  Rae8 {[%clk 0:02:02]} 18. Rfd1 {[%clk 0:02:28]}  Nf6 {[%clk 0:01:57]} 19. Nb5 {[%clk 0:02:23]}  Ng4 {[%clk 0:01:49]} 20. Qf3 {[%clk 0:02:18]}  Qxf3 {[%clk 0:01:44]} 21. gxf3 {[%clk 0:02:19]}  Nh6 {[%clk 0:01:44]} 22. Nxa7 {[%clk 0:02:17]}  Nf5 {[%clk 0:01:44]} 23. Rxb6 {[%clk 0:02:17]}  Nh4 {[%clk 0:01:43]} 24. Rd3 {[%clk 0:02:16]}  e4 {[%clk 0:01:37]} 25. fxe4 {[%clk 0:02:17]}  Rxe4 {[%clk 0:01:38]} 26. Re3 {[%clk 0:02:17]}  Rg4+ {[%clk 0:01:17]} 27. Kf1 {[%clk 0:02:16]}  Bh6 {[%clk 0:01:14]} 28. Re7 {[%clk 0:02:08]}  Nf5 {[%clk 0:01:10]} 29. Reb7 {[%clk 0:02:03]}  Bf4 {[%clk 0:01:06]} 30. a4 {[%clk 0:01:50]}  Bxh2 {[%clk 0:01:03]} 31. a5 {[%clk 0:01:51]}  Re8 {[%clk 0:01:03]} 32. f3 {[%clk 0:01:13]}  Rg1+ {[%clk 0:01:01]} 33. Kf2 {[%clk 0:01:12]}  Ree1 {[%clk 0:01:02]} 34. f4 {[%clk 0:00:59]}  Bg3+ {[%clk 0:00:51]} 35. Kf3 {[%clk 0:00:59]}  Nh4+ {[%clk 0:00:49]} 36. Kg4 {[%clk 0:00:59]}  Bf2+ {[%clk 0:00:50]} 37. Kh3 {[%clk 0:00:59]}  Rh1+ {[%clk 0:00:47]} 38. Kg4 {[%clk 0:00:59]}  Reg1# {[%clk 0:00:48]} 0-1


[Site "https://www.chess.com"]

[Event "Titled Tuesday Blitz February 01 A 2022"]
[White "Pakleza, Zbigniew"]
[Black "Aradhya, Garg"]
[WhiteFideId "1119290"]
[BlackFideId "25006746"]
[WhiteElo "2467"]
[BlackElo "2169"]
[Result "1-0"]
[Round "09"]
[TimeControl "180+1"]
[Date "2022.02.01"]
[WhiteClock "0:00:11"]
[BlackClock "0:00:08"]

1. d4 {[%clk 0:03:00]}  d5 {[%clk 0:02:56]} 2. Bf4 {[%clk 0:03:00]}  c5 {[%clk 0:02:55]} 3. e3 {[%clk 0:03:00]}  Nc6 {[%clk 0:02:55]} 4. c3 {[%clk 0:03:00]}  Qb6 {[%clk 0:02:52]} 5. Qb3 {[%clk 0:02:59]}  c4 {[%clk 0:02:52]} 6. Qc2 {[%clk 0:02:55]}  e5 {[%clk 0:02:52]} 7. dxe5 {[%clk 0:02:35]}  Bf5 {[%clk 0:02:52]} 8. Qc1 {[%clk 0:02:30]}  f6 {[%clk 0:02:48]} 9. Nf3 {[%clk 0:02:24]}  g5 {[%clk 0:01:59]} 10. Bg3 {[%clk 0:02:23]}  Bg7 {[%clk 0:01:53]} 11. exf6 {[%clk 0:02:17]}  Nxf6 {[%clk 0:01:54]} 12. Be2 {[%clk 0:01:42]}  O-O {[%clk 0:01:47]} 13. O-O {[%clk 0:01:39]}  g4 {[%clk 0:01:46]} 14. Nd4 {[%clk 0:01:38]}  Nxd4 {[%clk 0:01:45]} 15. cxd4 {[%clk 0:01:39]}  Ne4 {[%clk 0:01:40]} 16. Nc3 {[%clk 0:01:36]}  Qe6 {[%clk 0:01:40]} 17. Nxd5 {[%clk 0:01:29]}  Nxg3 {[%clk 0:01:36]} 18. hxg3 {[%clk 0:01:26]}  Rac8 {[%clk 0:01:35]} 19. Nf4 {[%clk 0:01:14]}  Qc6 {[%clk 0:01:35]} 20. Rd1 {[%clk 0:00:59]}  b5 {[%clk 0:01:30]} 21. Qc3 {[%clk 0:00:56]}  Rfd8 {[%clk 0:01:28]} 22. a4 {[%clk 0:00:52]}  bxa4 {[%clk 0:01:26]} 23. Rdc1 {[%clk 0:00:48]}  Kh8 {[%clk 0:01:03]} 24. Qxc4 {[%clk 0:00:42]}  Qxc4 {[%clk 0:01:03]} 25. Rxc4 {[%clk 0:00:36]}  Rxc4 {[%clk 0:01:03]} 26. Bxc4 {[%clk 0:00:37]}  Bd7 {[%clk 0:01:03]} 27. Be6 {[%clk 0:00:35]}  Be8 {[%clk 0:01:00]} 28. b3 {[%clk 0:00:26]}  axb3 {[%clk 0:00:50]} 29. Bxb3 {[%clk 0:00:27]}  h5 {[%clk 0:00:17]} 30. Rxa7 {[%clk 0:00:24]}  Bh6 {[%clk 0:00:17]} 31. Ne6 {[%clk 0:00:17]}  Rb8 {[%clk 0:00:16]} 32. Bd5 {[%clk 0:00:15]}  h4 {[%clk 0:00:16]} 33. gxh4 {[%clk 0:00:10]}  g3 {[%clk 0:00:16]} 34. fxg3 {[%clk 0:00:11]}  Bxe3+ {[%clk 0:00:15]} 35. Kh2 {[%clk 0:00:12]}  Bg6 {[%clk 0:00:13]} 36. Bf3 {[%clk 0:00:07]}  Bf5 {[%clk 0:00:13]} 37. Ng5 {[%clk 0:00:06]}  Bxd4 {[%clk 0:00:12]} 38. Ra5 {[%clk 0:00:05]}  Bg6 {[%clk 0:00:12]} 39. Ra6 {[%clk 0:00:04]}  Be8 {[%clk 0:00:11]} 40. Ne6 {[%clk 0:00:03]}  Rb6 {[%clk 0:00:10]} 41. Rxb6 {[%clk 0:00:03]}  Bxb6 {[%clk 0:00:11]} 42. Nf4 {[%clk 0:00:03]}  Kg7 {[%clk 0:00:11]} 43. Bg4 {[%clk 0:00:04]}  Kf6 {[%clk 0:00:11]} 44. Kh3 {[%clk 0:00:04]}  Ke5 {[%clk 0:00:10]} 45. Nd3+ {[%clk 0:00:04]}  Kf6 {[%clk 0:00:10]} 46. Nf4 {[%clk 0:00:05]}  Bd8 {[%clk 0:00:10]} 47. Bf3 {[%clk 0:00:04]}  Ke5 {[%clk 0:00:10]} 48. Ne2 {[%clk 0:00:03]}  Bd7+ {[%clk 0:00:09]} 49. g4 {[%clk 0:00:04]}  Ba5 {[%clk 0:00:08]} 50. Ng3 {[%clk 0:00:04]}  Be1 {[%clk 0:00:08]} 51. Nh5 {[%clk 0:00:04]}  Be8 {[%clk 0:00:07]} 52. Ng7 {[%clk 0:00:04]}  Bg6 {[%clk 0:00:08]} 53. Nh5 {[%clk 0:00:04]}  Bf2 {[%clk 0:00:06]} 54. Ng3 {[%clk 0:00:04]}  Kf4 {[%clk 0:00:06]} 55. Ne2+ {[%clk 0:00:03]}  Ke3 {[%clk 0:00:06]} 56. Nc3 {[%clk 0:00:04]}  Kd4 {[%clk 0:00:06]} 57. Nd5 {[%clk 0:00:04]}  Ke5 {[%clk 0:00:06]} 58. Ne7 {[%clk 0:00:03]}  Bh7 {[%clk 0:00:06]} 59. g5 {[%clk 0:00:03]}  Ke6 {[%clk 0:00:06]} 60. Nc6 {[%clk 0:00:03]}  Kd6 {[%clk 0:00:05]} 61. Nb4 {[%clk 0:00:03]}  Bc5 {[%clk 0:00:05]} 62. Na2 {[%clk 0:00:02]}  Bg8 {[%clk 0:00:05]} 63. Nc1 {[%clk 0:00:02]}  Be3 {[%clk 0:00:04]} 64. Ne2 {[%clk 0:00:03]}  Be6+ {[%clk 0:00:04]} 65. Bg4 {[%clk 0:00:04]}  Bc4 {[%clk 0:00:04]} 66. Ng3 {[%clk 0:00:05]}  Ke5 {[%clk 0:00:05]} 67. Nf5 {[%clk 0:00:06]}  Bf4 {[%clk 0:00:05]} 68. Ng3 {[%clk 0:00:06]}  Bd5 {[%clk 0:00:05]} 69. Nh5 {[%clk 0:00:07]}  Be3 {[%clk 0:00:05]} 70. Nf6 {[%clk 0:00:07]}  Bf7 {[%clk 0:00:05]} 71. g3 {[%clk 0:00:07]}  Bd2 {[%clk 0:00:05]} 72. Bc8 {[%clk 0:00:07]}  Kd6 {[%clk 0:00:05]} 73. Ne4+ {[%clk 0:00:07]}  Ke5 {[%clk 0:00:05]} 74. Nxd2 {[%clk 0:00:08]}  Kd4 {[%clk 0:00:05]} 75. Bg4 {[%clk 0:00:08]}  Ke3 {[%clk 0:00:05]} 76. Nf3 {[%clk 0:00:08]}  Kf2 {[%clk 0:00:06]} 77. Ne5 {[%clk 0:00:08]}  Bd5 {[%clk 0:00:05]} 78. g6 {[%clk 0:00:07]}  Kg1 {[%clk 0:00:05]} 79. h5 {[%clk 0:00:07]}  Bg2+ {[%clk 0:00:05]} 80. Kh4 {[%clk 0:00:08]}  Kf2 {[%clk 0:00:06]} 81. g7 {[%clk 0:00:08]}  Bd5 {[%clk 0:00:06]} 82. h6 {[%clk 0:00:09]}  Bg8 {[%clk 0:00:07]} 83. Bf5 {[%clk 0:00:09]}  Ke3 {[%clk 0:00:07]} 84. h7 {[%clk 0:00:09]}  Bxh7 {[%clk 0:00:08]} 85. Bxh7 {[%clk 0:00:10]}  Kd4 {[%clk 0:00:08]} 86. Ng6 {[%clk 0:00:11]}  Ke3 {[%clk 0:00:07]} 87. g8=Q {[%clk 0:00:11]}  Kf3 {[%clk 0:00:08]} 88. Qf7+ {[%clk 0:00:11]}  Kg2 {[%clk 0:00:08]} 89. Ne5 {[%clk 0:00:10]}  Kg1 {[%clk 0:00:08]} 90. Kh3 {[%clk 0:00:10]}  Kh1 {[%clk 0:00:08]} 91. Qf1# {[%clk 0:00:11]} 1-0


[Site "https://www.chess.com"]

[Event "Titled Tuesday Blitz February 01 A 2022"]
[White "Papp, Levente"]
[Black "Molina, Roberto Junio Brito"]
[WhiteFideId "751243"]
[BlackFideId "2109450"]
[WhiteElo "2308"]
[BlackElo "2402"]
[Result "0-1"]
[Round "09"]
[TimeControl "180+1"]
[Date "2022.02.01"]
[WhiteClock "0:00:06"]
[BlackClock "0:00:17"]

1. g3 {[%clk 0:03:00]}  c6 {[%clk 0:02:59]} 2. Bg2 {[%clk 0:03:00]}  d5 {[%clk 0:03:00]} 3. Nf3 {[%clk 0:03:00]}  Bg4 {[%clk 0:03:00]} 4. c4 {[%clk 0:02:59]}  e6 {[%clk 0:02:59]} 5. O-O {[%clk 0:02:56]}  Nd7 {[%clk 0:02:58]} 6. d3 {[%clk 0:02:55]}  Ngf6 {[%clk 0:02:56]} 7. Nc3 {[%clk 0:02:50]}  Bxf3 {[%clk 0:02:52]} 8. exf3 {[%clk 0:02:49]}  Bb4 {[%clk 0:02:45]} 9. f4 {[%clk 0:02:44]}  O-O {[%clk 0:02:43]} 10. Qb3 {[%clk 0:02:21]}  a5 {[%clk 0:02:30]} 11. a3 {[%clk 0:02:16]}  Nc5 {[%clk 0:02:30]} 12. Qc2 {[%clk 0:02:16]}  Bxc3 {[%clk 0:02:30]} 13. Qxc3 {[%clk 0:02:08]}  d4 {[%clk 0:02:30]} 14. Qc2 {[%clk 0:02:04]}  a4 {[%clk 0:02:29]} 15. Bd2 {[%clk 0:02:02]}  Qd6 {[%clk 0:02:25]} 16. Bb4 {[%clk 0:02:00]}  Nfd7 {[%clk 0:02:25]} 17. Rae1 {[%clk 0:01:57]}  Rfe8 {[%clk 0:02:25]} 18. Re2 {[%clk 0:01:49]}  g6 {[%clk 0:02:19]} 19. Rfe1 {[%clk 0:01:44]}  Qc7 {[%clk 0:02:11]} 20. h4 {[%clk 0:01:38]}  h5 {[%clk 0:02:10]} 21. Bf3 {[%clk 0:01:16]}  Red8 {[%clk 0:02:05]} 22. Kg2 {[%clk 0:01:15]}  b6 {[%clk 0:02:03]} 23. Bd2 {[%clk 0:01:08]}  Nb3 {[%clk 0:02:00]} 24. g4 {[%clk 0:01:06]}  hxg4 {[%clk 0:01:59]} 25. Bxg4 {[%clk 0:01:07]}  Nf6 {[%clk 0:01:59]} 26. Bf3 {[%clk 0:01:06]}  Nxd2 {[%clk 0:01:56]} 27. Qxd2 {[%clk 0:01:06]}  Ra5 {[%clk 0:01:56]} 28. Re5 {[%clk 0:01:06]}  Kg7 {[%clk 0:01:55]} 29. Rxa5 {[%clk 0:01:04]}  bxa5 {[%clk 0:01:56]} 30. Re5 {[%clk 0:01:04]}  c5 {[%clk 0:01:53]} 31. h5 {[%clk 0:00:56]}  gxh5 {[%clk 0:01:51]} 32. Rg5+ {[%clk 0:00:43]}  Kf8 {[%clk 0:01:51]} 33. f5 {[%clk 0:00:43]}  e5 {[%clk 0:01:43]} 34. Rg3 {[%clk 0:00:36]}  Ke7 {[%clk 0:01:40]} 35. Qh6 {[%clk 0:00:34]}  e4 {[%clk 0:01:22]} 36. Bxe4 {[%clk 0:00:31]}  Qe5 {[%clk 0:01:16]} 37. Qd2 {[%clk 0:00:20]}  Nxe4 {[%clk 0:01:04]} 38. Qe2 {[%clk 0:00:16]}  Kd6 {[%clk 0:00:57]} 39. dxe4 {[%clk 0:00:16]}  Rh8 {[%clk 0:00:53]} 40. f3 {[%clk 0:00:11]}  h4 {[%clk 0:00:51]} 41. Rg4 {[%clk 0:00:11]}  h3+ {[%clk 0:00:51]} 42. Kh1 {[%clk 0:00:11]}  Re8 {[%clk 0:00:41]} 43. Qd2 {[%clk 0:00:11]}  Ra8 {[%clk 0:00:32]} 44. Qh6+ {[%clk 0:00:11]}  Kc7 {[%clk 0:00:32]} 45. Rg7 {[%clk 0:00:10]}  Qe7 {[%clk 0:00:30]} 46. Qe6 {[%clk 0:00:10]}  Qxe6 {[%clk 0:00:26]} 47. fxe6 {[%clk 0:00:10]}  Kd6 {[%clk 0:00:21]} 48. exf7 {[%clk 0:00:09]}  Rf8 {[%clk 0:00:20]} 49. Rg5 {[%clk 0:00:09]}  Rxf7 {[%clk 0:00:19]} 50. Rd5+ {[%clk 0:00:10]}  Kc6 {[%clk 0:00:20]} 51. e5 {[%clk 0:00:05]}  Rxf3 {[%clk 0:00:20]} 52. Kh2 {[%clk 0:00:06]}  Re3 {[%clk 0:00:19]} 53. e6 {[%clk 0:00:06]}  Rxe6 {[%clk 0:00:19]} 54. Kxh3 {[%clk 0:00:06]}  Re2 {[%clk 0:00:17]} 0-1


[Site "https://www.chess.com"]